fUST/lending_fUST_20240215
["ID","MTS","AMOUNT","RATE_DAILY","PERIOD"]
[314038639,1707941455418,-500.0,0.00034999,14]
[314038640,1707941455427,-500.0,0.00034999,14]
[314038641,1707941455436,-500.0,0.00034999,14]
[314038642,1707941455446,-529.4,0.00034999,14]
[314038643,1707941455456,-500.0,0.00034999,14]
[314038644,1707941455466,-500.0,0.00034999,14]
[314038645,1707941455475,-500.0,0.00034999,14]
[314038646,1707941455485,-500.0,0.00034999,14]
[314038647,1707941455494,-500.0,0.00034999,14]
[314038648,1707941455504,-500.0,0.00034999,14]
[314038649,1707941455514,-500.0,0.00034999,14]
[314038650,1707941455523,-500.0,0.00034999,14]
[314038651,1707941455533,-500.0,0.00034999,14]
[314038652,1707941455543,-258.38,0.00034999,14]
[314038653,1707941455551,-313.21763531,0.00034999,15]
[314038654,1707941455562,-500.0,0.00034999,15]
[314038655,1707941455571,-500.0,0.00034999,15]
[314038656,1707941455580,-500.0,0.00034999,15]
[314038657,1707941455590,-531.87825195,0.00034999,15]
[314038658,1707941455600,-500.0,0.00034999,15]
[314038659,1707941455610,-241.19474332,0.00034999,15]
[314038660,1707941455619,-343.09451161,0.00034999,15]
[314038661,1707941455629,-500.0,0.00034999,15]
[314038662,1707941455638,-264.05261257,0.00034999,15]
[314038663,1707941455648,-500.0,0.00034999,15]
[314038664,1707941455657,-500.0,0.00034999,15]
[314038665,1707941455668,-500.0,0.00034999,15]
[314038666,1707941455678,-500.0,0.00034999,15]
[314038667,1707941455688,-500.0,0.00034999,15]
[314038668,1707941455698,-500.0,0.00034999,15]
[314038669,1707941455708,-500.0,0.00034999,15]
[314038670,1707941455718,-500.0,0.00034999,15]
[314038671,1707941455728,-500.0,0.00034999,15]
[314038672,1707941455737,-584.65093378,0.00034999,15]
[314038673,1707941455747,-500.0,0.00034999,15]
[314038674,1707941455757,-500.0,0.00034999,15]
[314038675,1707941455767,-500.0,0.00034999,15]
[314038676,1707941455777,-500.0,0.00034999,15]
[314038677,1707941455786,-500.0,0.00034999,15]
[314038678,1707941455796,-500.0,0.00034999,15]
[314038679,1707941455805,-500.0,0.00034999,15]
[314038680,1707941455815,-500.0,0.00034999,15]
[314038681,1707941455825,-500.0,0.00034999,15]
[314038682,1707941455834,-500.0,0.00034999,15]
[314038683,1707941455845,-500.0,0.00034999,15]
[314038684,1707941455855,-500.0,0.00034999,15]
[314038685,1707941455865,-500.0,0.00034999,15]
[314038686,1707941455875,-500.0,0.00034999,15]
[314038687,1707941455884,-500.0,0.00034999,15]
[314038688,1707941455893,-500.0,0.00034999,15]
[314038689,1707941455902,-500.0,0.00034999,15]
[314038690,1707941455911,-461.62081536,0.00034999,15]
[314038691,1707941455922,-500.0,0.00034999,15]
[314038692,1707941455931,-500.0,0.00034999,15]
[314038693,1707941455941,-500.0,0.00034999,15]
[314038694,1707941455950,-500.0,0.00034999,15]
[314038695,1707941455960,-500.0,0.00034999,15]
[314038696,1707941455970,-500.0,0.00034999,15]
[314038697,1707941455979,-500.0,0.00034999,15]
[314038698,1707941455989,-500.0,0.00034999,15]
[314038699,1707941455998,-500.0,0.00034999,15]
[314038700,1707941456007,-500.0,0.00034999,15]
[314038701,1707941456017,-500.0,0.00034999,15]
[314038702,1707941456029,-500.0,0.00034999,15]
[314038703,1707941456038,-500.0,0.00034999,15]
[314038704,1707941456048,-500.0,0.00034999,15]
[314038705,1707941456059,-500.0,0.00034999,15]
[314038706,1707941456071,-500.0,0.00034999,15]
[314038707,1707941456081,-500.0,0.00034999,15]
[314038708,1707941456090,-500.0,0.00034999,15]
[314038709,1707941456100,-500.0,0.00034999,15]
[314038710,1707941456111,-500.0,0.00034999,15]
[314038711,1707941456122,-500.0,0.00034999,15]
[314038712,1707941456132,-500.0,0.00034999,15]
[314038713,1707941456141,-500.0,0.00034999,15]
[314038714,1707941456151,-500.0,0.00034999,15]
[314038715,1707941456160,-500.0,0.00034999,15]
[314038716,1707941456171,-500.0,0.00034999,15]
[314038717,1707941456180,-500.0,0.00034999,15]
[314038718,1707941456189,-500.0,0.00034999,15]
[314038719,1707941456198,-500.0,0.00034999,15]
[314038720,1707941456208,-500.0,0.00034999,15]
[314038721,1707941456217,-500.0,0.00034999,15]
[314038722,1707941456226,-500.0,0.00034999,15]
[314038723,1707941456235,-500.0,0.00034999,15]
[314038724,1707941456245,-500.0,0.00034999,15]
[314038725,1707941456254,-500.0,0.00034999,15]
[314038726,1707941456312,-465.3032906,0.00034999,15]
[314038727,1707941456321,-500.0,0.00034999,15]
[314038728,1707941456331,-500.0,0.00034999,15]
[314038729,1707941456341,-500.0,0.00034999,15]
[314038730,1707941456350,-569.53858183,0.00035,2]
[314038731,1707941456360,-154.87609812,0.00035,2]
[314038732,1707941456369,-592.9404348,0.00035,2]
[314038733,1707941456378,-212.18771165,0.00035,4]
[314038734,1707941456387,-300.07497138,0.00035,6]
[314038735,1707941456396,-15834.83443258,0.00035,120]
[314038736,1707941456406,-80762.54343928,0.00035,4]
[314038737,1707941456415,-1000.0,0.00035,2]
[314038738,1707941456424,-1000.0,0.00035,35]
[314038739,1707941456433,-264.12667714,0.00035,30]
[314038740,1707941456442,-1194193.20791139,0.00035,4]
[314038741,1707941456807,-450.7616,0.00035,4]
[314038742,1707941456860,-748813.85596154,0.00035,4]
[314038743,1707941456872,-3321.43903066,0.00035,4]
[314038744,1707941456885,-224974.01604225,0.00035,4]
[314038745,1707941456897,-280.4,0.00035,4]
[314038746,1707941525543,310.0,0.0003497,35]
[314038747,1707941587083,140.74,0.0003497,35]
[314038773,1707942632560,-350.0,0.00025,2]
[314038774,1707942632569,-229.44448174,0.0002613,3]
[314038775,1707942632579,-24900.0,0.0003,2]
[314038776,1707942632588,-350.0,0.0003,2]
[314038777,1707942632597,-1250.0,0.0003,2]
[314038778,1707942632606,-169.133355,0.0003018,2]
[314038779,1707942632616,-2748.48775163,0.0003115,2]
[314038781,1707942632625,-16811.60924659,0.0003115,4]
[314038783,1707942632635,-16542.84996795,0.0003115,4]
[314038785,1707942632645,-5789.37193552,0.00031178,2]
[314038787,1707942632654,-208.4807768,0.00031518,2]
[314038789,1707942632663,-2237.48,0.0003198,3]
[314038791,1707942632673,-2684.97,0.0003199,3]
[314038793,1707942632683,-1500.0,0.00032,2]
[314038795,1707942632693,-863.152725,0.00032527,2]
[314038797,1707942632702,-150.0,0.000329,2]
[314038799,1707942632712,-151.0,0.00033,2]
[314038801,1707942632722,-166.666666,0.00033034,2]
[314038803,1707942632731,-169.0690976,0.00033135,2]
[314038804,1707942632742,-159.19047897,0.00034031,2]
[314038805,1707942632751,-2837.5,0.00034111,3]
[314038806,1707942632760,-3221.96,0.00034131,3]
[314038807,1707942632769,-5000.0,0.00034141,7]
[314038808,1707942632779,-200.0,0.00034264,15]
[314038809,1707942632788,-151.0,0.00034521,2]
[314038810,1707942632798,-166.666666,0.00034535,2]
[314038811,1707942632808,-2000.0,0.000347,20]
[314038812,1707942632818,-2000.0,0.0003471,21]
[314038813,1707942632827,-2885.983464,0.0003472,21]
[314038814,1707942632838,-500.0,0.00034794,14]
[314038815,1707942632848,-500.0,0.00034794,14]
[314038816,1707942632858,-500.0,0.00034794,14]
[314038817,1707942632868,-500.0,0.00034794,14]
[314038818,1707942632877,-500.0,0.00034794,14]
[314038819,1707942632887,-500.0,0.00034794,14]
[314038820,1707942632896,-500.0,0.00034794,14]
[314038821,1707942632905,-459.3,0.00034794,14]
[314038822,1707942632915,-500.0,0.00034794,14]
[314038823,1707942632924,-500.0,0.00034794,14]
[314038824,1707942632933,-605.01232788,0.00034794,14]
[314038825,1707942632942,-500.0,0.00034794,14]
[314038826,1707942632951,-500.0,0.00034794,14]
[314038827,1707942632960,-500.0,0.00034794,14]
[314038828,1707942632969,-500.0,0.00034794,14]
[314038829,1707942632978,-500.0,0.00034794,14]
[314038830,1707942632986,-500.0,0.00034794,14]
[314038831,1707942632995,-500.0,0.00034794,14]
[314038832,1707942633004,-500.0,0.00034794,14]
[314038833,1707942633013,-500.0,0.00034794,14]
[314038834,1707942633022,-500.0,0.00034794,14]
[314038835,1707942633032,-500.0,0.00034794,14]
[314038836,1707942633040,-500.0,0.00034794,14]
[314038837,1707942633050,-500.0,0.00034794,14]
[314038838,1707942633059,-1971.29,0.00034794,14]
[314038839,1707942633069,-1971.29,0.00034794,14]
[314038840,1707942633078,-1971.29,0.00034794,14]
[314038841,1707942633087,-1971.29,0.00034794,14]
[314038842,1707942633096,-1971.29,0.00034794,14]
[314038843,1707942633105,-500.0,0.00034794,14]
[314038844,1707942633114,-500.0,0.00034794,14]
[314038845,1707942633123,-500.0,0.00034794,14]
[314038846,1707942633133,-500.0,0.00034794,14]
[314038847,1707942633143,-500.0,0.00034794,14]
[314038848,1707942633152,-500.0,0.00034794,14]
[314038849,1707942633162,-500.0,0.00034794,14]
[314038850,1707942633172,-291.46716292,0.00034794,14]
[314038851,1707942633182,-534.81741702,0.00034794,14]
[314038852,1707942633191,-939.98551543,0.00034817,2]
[314038853,1707942633200,-500.0,0.00034899,14]
[314038854,1707942633209,-500.0,0.00034899,14]
[314038855,1707942633218,-500.0,0.00034899,14]
[314038856,1707942633228,-500.0,0.00034899,14]
[314038857,1707942633238,-500.0,0.00034899,14]
[314038858,1707942633248,-500.0,0.00034899,14]
[314038859,1707942633258,-500.0,0.00034899,14]
[314038860,1707942633267,-254.51848042,0.00034899,14]
[314038861,1707942633277,-159.19047896,0.00034899,2]
[314038862,1707942633286,-250.0,0.00034899,2]
[314038863,1707942633295,-500.0,0.00034899,15]
[314038864,1707942633305,-360.89941862,0.00034899,15]
[314038865,1707942633314,-77708.03815669,0.000349,2]
[314038866,1707942633333,-4583.0720386,0.000349,2]
[314038889,1707942639537,-190094.70973078,0.000349,2]
[314038892,1707942639557,-3614.18007393,0.000349,2]
[314038894,1707942639566,-44197.21615678,0.00034917,3]
[314038897,1707942639578,-246.78384322,0.00034917,3]
[314038899,1707942639587,-15.79710819,0.00034999,15]
[314038901,1707942639598,-484.20289181,0.00034999,15]
[314038903,1707942639607,-155.3303799,0.00034999,15]
[314038905,1707942639617,-500.0,0.00034999,15]
[314038907,1707942639625,-500.0,0.00034999,15]
[314038909,1707942639635,-500.0,0.00034999,15]
[314038911,1707942639644,-500.0,0.00034999,15]
[314038913,1707942639652,-98.90737658,0.00034999,15]
[314038959,1707942645044,-453.99320693,0.00034999,15]
[314038960,1707942645054,-500.0,0.00034999,15]
[314038961,1707942645063,-500.0,0.00034999,15]
[314038962,1707942645072,-500.0,0.00034999,15]
[314038963,1707942645082,-500.0,0.00034999,15]
[314038964,1707942645091,-500.0,0.00034999,3]
[314038965,1707942645100,-152461.03417594,0.00035,4]
[314038967,1707942645112,-763.59512221,0.00035,4]
[314038968,1707942645123,-4700.0,0.00035,4]
[314038999,1707942645559,-1002.2934618,0.00035,4]
[314039001,1707942645571,-68959.11440475,0.00035,4]
[314039017,1707942645700,-500.0,0.00035,4]
[314039020,1707942645715,-5533.82886747,0.00035,4]
[314039022,1707942645727,-1752.6581975,0.00035,4]
[314039024,1707942645738,-1697.98154973,0.00035,4]
[314039026,1707942645750,-8849.88037433,0.00035,4]
[314039028,1707942645761,-1428.63012708,0.00035,4]
[314039031,1707942645776,-47901.58673666,0.00035,4]
[314039033,1707942645787,-35757.7429621,0.00035,4]
[314039125,1707942646703,-10366.39035471,0.00035,4]
[314039212,1707942875562,-1000.0,0.00036,36]
[314039213,1707942875588,-82.27333355,0.00036778,120]
[314039214,1707942875631,-1917.0,0.00036778,120]
[314039215,1707942875794,-952.72666645,0.00036778,120]
[314039216,1707942875864,-1000.0,0.00038,120]
[314039217,1707942875919,-1016.25,0.00036,30]
[314039218,1707942875978,-1000.0,0.00037,37]
[314039219,1707942876080,-279.0,0.00038,120]
[314039220,1707942876137,-218.11291803,0.00038,120]
[314039221,1707942876160,-60.88708197,0.00038,38]
[314039222,1707942876218,-800.0,0.00038,38]
[314039223,1707942876265,-900.0,0.0003707,31]
[314039224,1707942876322,-139.11291803,0.00038,38]
[314039225,1707942876343,-1060.88708197,0.00038,120]
[314039226,1707942876486,-558.0,0.00038,120]
[314039227,1707942876549,-182.27333355,0.0003707,31]
[314039228,1707942876575,-900.0,0.000377,30]
[314039229,1707942876598,-378.71666645,0.00037987,30]
[314039230,1707942876652,-279.0,0.00038,120]
[314039231,1707943083084,510.03072187,0.00036777,120]
[314039251,1707943831722,-166.955964,0.00029286,2]
[314039252,1707943831734,-431.576362,0.00029719,2]
[314039253,1707943831745,-2972.9426304,0.00029884,2]
[314039254,1707943831756,-505.97000102,0.0003,2]
[314039255,1707943831767,-9466.5372601,0.00030009,2]
[314039256,1707943831781,-1271.58741908,0.00030272,2]
[314039259,1707943831797,-2549.55506992,0.00030272,2]
[314039261,1707943831808,-166.955964,0.00030284,2]
[314039263,1707943831820,-150.52568306,0.00031063,5]
[314039265,1707943831831,-182.13919925,0.00031073,2]
[314039267,1707943831843,-2546.97,0.00031163,3]
[314039269,1707943831854,-2122.48,0.00031163,3]
[314039271,1707943831866,-1768.73,0.00031163,3]
[314039273,1707943831878,-500.0,0.00031172,2]
[314039275,1707943831889,-183.33248648,0.00031172,2]
[314039278,1707943831901,-500.0,0.00031172,2]
[314039280,1707943831913,-500.0,0.00031172,2]
[314039282,1707943831924,-500.0,0.00031172,2]
[314039284,1707943831936,-500.0,0.00031172,2]
[314039286,1707943831947,-500.0,0.00031172,2]
[314039287,1707943831959,-381.81219344,0.00031172,2]
[314039288,1707943831971,-500.0,0.00031172,2]
[314039289,1707943831982,-500.0,0.00031172,2]
[314039290,1707943831994,-500.0,0.00031172,2]
[314039292,1707943832005,-500.0,0.00031172,2]
[314039293,1707943832016,-500.0,0.00031172,2]
[314039294,1707943832027,-500.0,0.00031172,2]
[314039295,1707943832038,-406.22690016,0.00031172,2]
[314039296,1707943832051,-500.0,0.00031172,2]
[314039297,1707943832062,-500.0,0.00031172,2]
[314039298,1707943832073,-500.0,0.00031172,2]
[314039299,1707943832085,-205.1029932,0.00031172,2]
[314039300,1707943832096,-500.0,0.00031172,2]
[314039301,1707943832107,-500.0,0.00031172,2]
[314039302,1707943832119,-500.0,0.00031172,2]
[314039303,1707943832131,-500.0,0.00031172,2]
[314039304,1707943832231,-500.0,0.00031172,2]
[314039305,1707943832276,-175.03647881,0.00031172,2]
[314039306,1707943832285,-500.0,0.00031172,2]
[314039307,1707943832295,-500.0,0.00031172,2]
[314039308,1707943832304,-500.0,0.00031172,2]
[314039309,1707943832313,-500.0,0.00031172,2]
[314039310,1707943832323,-500.0,0.00031172,2]
[314039311,1707943832332,-500.0,0.00031172,2]
[314039312,1707943832342,-500.0,0.00031172,2]
[314039313,1707943832352,-500.0,0.00031172,2]
[314039314,1707943832362,-500.0,0.00031172,2]
[314039315,1707943832372,-500.0,0.00031172,2]
[314039316,1707943832381,-500.0,0.00031172,2]
[314039317,1707943832391,-500.0,0.00031172,2]
[314039318,1707943832400,-500.0,0.00031172,2]
[314039319,1707943832410,-500.0,0.00031172,2]
[314039320,1707943832419,-500.0,0.00031172,2]
[314039321,1707943832428,-50000.0,0.00031173,4]
[314039322,1707943832436,-21382.68263339,0.00031173,5]
[314039345,1707943837963,-77188.74404483,0.00031173,5]
[314039347,1707943837986,-824.54632549,0.00031227,2]
[314039349,1707943838008,-250.0,0.00031277,2]
[314039352,1707943838039,-24900.0,0.00031278,2]
[314039354,1707943838065,-166.955964,0.00031282,2]
[314039356,1707943838086,-500.0,0.00031309,2]
[314039358,1707943838108,-500.0,0.00031446,2]
[314039359,1707943838129,-500.0,0.00031583,2]
[314039360,1707943838151,-500.0,0.0003172,2]
[314039361,1707943838173,-500.0,0.00031962,2]
[314039363,1707943838194,-916.55731584,0.00032194,2]
[314039365,1707943838208,-166.955964,0.0003228,2]
[314039367,1707943838218,-750.0,0.00032647,2]
[314039369,1707943838228,-46235.1663714,0.00032877,2]
[314039371,1707943838238,-1252.91694297,0.000329,2]
[314039372,1707943838248,-166.955964,0.00033278,2]
[314039374,1707943838257,-1000.0,0.00033332,2]
[314039376,1707943838267,-200.0,0.0003336,15]
[314039377,1707943838277,-150.29686133,0.00033491,2]
[314039378,1707943838286,-166.49674,0.00033652,2]
[314039379,1707943838298,-158.431479,0.00033652,2]
[314039380,1707943838307,-166.49674,0.00033652,2]
[314039381,1707943838317,-158.431477,0.00033652,2]
[314039382,1707943838327,-50000.0,0.00033736,7]
[314039383,1707943838337,-1250.0,0.00034017,2]
[314039384,1707943838347,-300.0,0.00034087,2]
[314039385,1707943838357,-300.0,0.00034439,2]
[314039386,1707943838367,-200.0,0.00034551,2]
[314039387,1707943838377,-200.0,0.00034551,2]
[314039388,1707943838386,-200.0,0.00034551,2]
[314039389,1707943838396,-200.0,0.00034551,2]
[314039390,1707943838406,-400.0,0.00034551,2]
[314039391,1707943838416,-150.0,0.000347,20]
[314039392,1707943838426,-776.98215071,0.00034702,2]
[314039393,1707943838436,-2000.0,0.0003476,2]
[314039394,1707943838446,-2000.0,0.0003476,2]
[314039395,1707943838456,-300.0,0.00034791,2]
[314039396,1707943838467,-500.0,0.00034794,14]
[314039397,1707943838476,-500.0,0.00034794,14]
[314039398,1707943838486,-500.0,0.00034794,14]
[314039399,1707943838495,-500.0,0.00034794,14]
[314039400,1707943838505,-500.0,0.00034799,14]
[314039401,1707943838514,-500.0,0.00034799,14]
[314039402,1707943838524,-500.0,0.00034799,14]
[314039403,1707943838534,-500.0,0.00034799,14]
[314039404,1707943838543,-498.92336845,0.00034799,15]
[314039405,1707943838553,-152.44813766,0.00034799,15]
[314039406,1707943838563,-500.0,0.00034799,15]
[314039407,1707943838572,-500.0,0.00034799,15]
[314039408,1707943838581,-500.0,0.00034799,15]
[314039409,1707943838591,-500.0,0.00034799,15]
[314039410,1707943838600,-500.0,0.00034799,15]
[314039411,1707943838610,-500.0,0.00034799,15]
[314039412,1707943838620,-500.0,0.00034799,15]
[314039413,1707943838631,-175.72696625,0.00034799,15]
[314039414,1707943838642,-266.33184953,0.00034799,15]
[314039415,1707943838652,-455.69555029,0.00034799,15]
[314039416,1707943838661,-500.0,0.00034799,15]
[314039417,1707943838671,-476.90005854,0.00034799,15]
[314039418,1707943838681,-500.0,0.00034799,15]
[314039419,1707943838690,-500.0,0.00034799,15]
[314039420,1707943838699,-500.0,0.00034799,15]
[314039421,1707943838710,-1158.06250694,0.00034799,2]
[314039422,1707943838719,-276000.0,0.000348,2]
[314039423,1707943838728,-37798.19550704,0.00034899,3]
[314039424,1707943838737,-500.0,0.00034899,14]
[314039425,1707943838746,-500.0,0.00034899,14]
[314039426,1707943838755,-500.0,0.00034899,14]
[314039427,1707943838765,-500.0,0.00034899,14]
[314039428,1707943838774,-500.0,0.00034899,14]
[314039429,1707943838783,-500.0,0.00034899,14]
[314039430,1707943838792,-500.0,0.00034899,14]
[314039431,1707943838803,-500.0,0.00034899,14]
[314039432,1707943838813,-500.0,0.00034899,14]
[314039433,1707943838822,-1677.01,0.00034899,14]
[314039434,1707943838832,-1677.01,0.00034899,14]
[314039435,1707943838842,-1677.01,0.00034899,14]
[314039436,1707943838851,-1677.01,0.00034899,14]
[314039437,1707943838861,-1677.01,0.00034899,14]
[314039438,1707943838870,-500.0,0.00034899,14]
[314039439,1707943838880,-500.0,0.00034899,14]
[314039440,1707943838890,-195.93,0.00034899,14]
[314039441,1707943838899,-624.93,0.00034899,14]
[314039442,1707943838909,-500.0,0.00034899,14]
[314039443,1707943838918,-500.0,0.00034899,14]
[314039444,1707943838927,-500.0,0.00034899,14]
[314039445,1707943838937,-501.02,0.00034899,14]
[314039446,1707943838947,-500.0,0.00034899,14]
[314039447,1707943838957,-500.0,0.00034899,14]
[314039448,1707943838966,-500.0,0.00034899,14]
[314039449,1707943838976,-500.0,0.00034899,14]
[314039450,1707943838985,-500.0,0.00034899,14]
[314039451,1707943838994,-603.7,0.00034899,14]
[314039452,1707943839004,-500.0,0.00034899,14]
[314039453,1707943839013,-500.0,0.00034899,14]
[314039454,1707943839023,-500.0,0.00034899,14]
[314039455,1707943839032,-500.0,0.00034899,14]
[314039456,1707943839042,-500.0,0.00034899,14]
[314039457,1707943839052,-500.0,0.00034899,14]
[314039458,1707943839062,-500.0,0.00034899,14]
[314039459,1707943839072,-500.0,0.00034899,14]
[314039460,1707943839082,-500.0,0.00034899,14]
[314039461,1707943839091,-500.0,0.00034899,14]
[314039462,1707943839100,-500.0,0.00034899,14]
[314039463,1707943839110,-500.0,0.00034899,14]
[314039464,1707943839119,-500.0,0.00034899,14]
[314039465,1707943839129,-500.0,0.00034899,14]
[314039466,1707943839138,-500.0,0.00034899,14]
[314039467,1707943839147,-248.0,0.00034899,14]
[314039468,1707943839157,-500.0,0.00034899,14]
[314039469,1707943839166,-500.0,0.00034899,14]
[314039470,1707943839175,-500.0,0.00034899,14]
[314039471,1707943839185,-500.0,0.00034899,14]
[314039472,1707943839194,-500.0,0.00034899,14]
[314039473,1707943839203,-500.0,0.00034899,14]
[314039474,1707943839213,-500.0,0.00034899,14]
[314039475,1707943839222,-500.0,0.00034899,14]
[314039476,1707943839231,-500.0,0.00034899,14]
[314039477,1707943839240,-500.0,0.00034899,14]
[314039478,1707943839249,-500.0,0.00034899,14]
[314039479,1707943839258,-500.0,0.00034899,14]
[314039480,1707943839268,-500.0,0.00034899,14]
[314039481,1707943839277,-500.0,0.00034899,14]
[314039482,1707943839286,-500.0,0.00034899,14]
[314039483,1707943839296,-500.0,0.00034899,14]
[314039484,1707943839306,-500.0,0.00034899,14]
[314039485,1707943839409,-500.0,0.00034899,14]
[314039486,1707943839419,-500.0,0.00034899,14]
[314039487,1707943839428,-500.0,0.00034899,14]
[314039488,1707943839437,-500.0,0.00034899,14]
[314039489,1707943839446,-500.0,0.00034899,14]
[314039490,1707943839455,-500.0,0.00034899,14]
[314039491,1707943839464,-500.0,0.00034899,14]
[314039492,1707943839473,-500.0,0.00034899,14]
[314039493,1707943839482,-500.0,0.00034899,14]
[314039494,1707943839492,-500.0,0.00034899,14]
[314039495,1707943839501,-500.0,0.00034899,14]
[314039496,1707943839510,-500.0,0.00034899,14]
[314039497,1707943839519,-500.0,0.00034899,14]
[314039498,1707943839528,-500.0,0.00034899,14]
[314039499,1707943839537,-500.0,0.00034899,14]
[314039500,1707943839546,-500.0,0.00034899,14]
[314039501,1707943839559,-500.0,0.00034899,14]
[314039502,1707943839568,-500.0,0.00034899,14]
[314039503,1707943839577,-500.0,0.00034899,14]
[314039504,1707943839586,-500.0,0.00034899,14]
[314039505,1707943839595,-500.0,0.00034899,14]
[314039506,1707943839604,-500.0,0.00034899,14]
[314039507,1707943839613,-500.0,0.00034899,14]
[314039508,1707943839623,-255.88,0.00034899,14]
[314039509,1707943839634,-500.0,0.00034899,14]
[314039510,1707943839643,-467.05,0.00034899,14]
[314039511,1707943839652,-500.0,0.00034899,14]
[314039512,1707943839661,-500.0,0.00034899,14]
[314039513,1707943839672,-500.0,0.00034899,14]
[314039514,1707943839681,-500.0,0.00034899,14]
[314039515,1707943839690,-500.0,0.00034899,14]
[314039516,1707943839699,-500.0,0.00034899,14]
[314039517,1707943839709,-500.0,0.00034899,14]
[314039518,1707943839718,-500.0,0.00034899,14]
[314039519,1707943839727,-500.0,0.00034899,14]
[314039520,1707943839736,-500.0,0.00034899,14]
[314039521,1707943839745,-500.0,0.00034899,14]
[314039522,1707943839754,-500.0,0.00034899,14]
[314039523,1707943839763,-500.0,0.00034899,14]
[314039524,1707943839772,-500.0,0.00034899,14]
[314039525,1707943839782,-500.0,0.00034899,14]
[314039526,1707943839791,-500.0,0.00034899,14]
[314039527,1707943839802,-500.0,0.00034899,14]
[314039528,1707943839812,-500.0,0.00034899,14]
[314039529,1707943839822,-500.0,0.00034899,14]
[314039530,1707943839831,-500.0,0.00034899,14]
[314039531,1707943839841,-500.0,0.00034899,14]
[314039532,1707943839850,-510.49,0.00034899,14]
[314039533,1707943839859,-500.0,0.00034899,14]
[314039534,1707943839868,-500.0,0.00034899,14]
[314039535,1707943839878,-500.0,0.00034899,14]
[314039536,1707943839887,-500.0,0.00034899,14]
[314039537,1707943839896,-500.0,0.00034899,14]
[314039538,1707943839906,-500.0,0.00034899,14]
[314039539,1707943839916,-500.0,0.00034899,14]
[314039540,1707943839926,-500.0,0.00034899,14]
[314039541,1707943839936,-500.0,0.00034899,14]
[314039542,1707943839946,-500.0,0.00034899,14]
[314039543,1707943839957,-500.0,0.00034899,14]
[314039544,1707943839967,-500.0,0.00034899,14]
[314039545,1707943839977,-500.0,0.00034899,14]
[314039546,1707943839986,-357.29,0.00034899,14]
[314039547,1707943839996,-548.13,0.00034899,14]
[314039548,1707943840006,-548.13,0.00034899,14]
[314039549,1707943840016,-548.13,0.00034899,14]
[314039550,1707943840025,-548.13,0.00034899,14]
[314039552,1707943840035,-548.13,0.00034899,14]
[314039553,1707943840044,-548.13,0.00034899,14]
[314039555,1707943840055,-548.13,0.00034899,14]
[314039557,1707943840064,-548.13,0.00034899,14]
[314039559,1707943840074,-548.13,0.00034899,14]
[314039561,1707943840083,-500.0,0.00034899,14]
[314039562,1707943840092,-500.0,0.00034899,14]
[314039564,1707943840102,-500.0,0.00034899,14]
[314039566,1707943840111,-500.0,0.00034899,14]
[314039567,1707943840121,-500.0,0.00034899,14]